bitfinex/quotes_ETHUSD_20220123
["timestamp","ask_amount","ask_price","bid_price","bid_amount"]
[1642949901828,3.5,2441.3,2440.9,1.54168147]
[1642949902025,3.5758,2441.8,2441.1,1.54168147]
[1642949902026,0.499,2441.8,2441.1,1.54168147]
[1642949902828,0.499,2441.8,2441.2,1.54168147]
[1642949903025,0.499,2441.8,2441.1,1.54168147]
[1642949903227,1.28222234,2441.3,2441.1,0.52488147]
[1642949903429,1.28222234,2441.3,2440.8,0.8039]
[1642949903430,0.71605231,2441.2,2440.8,0.8039]
[1642949903629,7.38660384,2440.9,2440.8,0.8039]
[1642949903830,1.93560384,2440.9,2440.3,2.05557529]
[1642949904029,1.93560384,2440.9,2440.2,2.05557529]
[1642949904030,0.499,2440.9,2440.2,2.05557529]
[1642949904529,0.499,2440.9,2440.1,3.21564723]
[1642949904530,1.00382,2440.9,2440.1,3.21564723]
[1642949904727,1.00382,2440.9,2440.1,1.16007194]
[1642949904931,1.3017109,2440.8,2440.1,3.21564723]
[1642949905133,0.70382,2440.7,2440.1,1.16007194]
[1642949905380,0.499,2440.7,2440.1,1.16007194]
[1642949905782,0.499,2440.7,2440.1,3.21564723]
[1642949906183,0.499,2440.7,2440.1,1.16007194]
[1642949906783,0.80482,2440.9,2440.1,1.16007194]
[1642949906984,0.80482,2440.9,2440.1,3.21564723]
[1642949906985,0.50482,2440.9,2440.1,3.21564723]
[1642949907186,0.01223231,2441.2,2440.2,2.05557529]
[1642949907385,1.18132557,2441.2,2440.4,2.05557529]
[1642949907589,0.20482,2441.4,2440.5,2.05557529]
[1642949907789,3.70482,2441.4,2440.2,3.12392081]
[1642949907985,3.70482,2441.4,2440.1,4.28399275]
[1642949908388,3.70482,2441.4,2440.2,3.12392081]
[1642949908588,4.90729854,2441.4,2440.2,3.12392081]
[1642949908791,4.90729854,2441.4,2440.4,3.12392081]
[1642949909037,1.02416876,2441.8,2440.4,7.8]
[1642949910033,1.45847082,2441.5,2440.4,7.8]
[1642949910336,1.02416876,2441.8,2440.4,7.8]
[1642949910534,1.02416876,2441.8,2440.1,1.16007194]
[1642949910733,0.06778982,2441.7,2440.1,1.16007194]
[1642949910934,0.03510745,2441.7,2440.1,1.16007194]
[1642949911134,1.46759679,2441.2,2440.1,1.16007194]
[1642949911336,1.02683139,2441.8,2440.1,1.16007194]
[1642949911735,1.02683139,2441.8,2440.2,4.59931484]
[1642949911936,1.02416876,2441.8,2440.1,1.16007194]
[1642949912138,1.02552,2441.6,2440.1,1.16007194]
[1642949912336,1.33199814,2440.9,2440.1,1.16007194]
[1642949912772,1.63199814,2440.9,2440.1,1.16007194]
[1642949912976,1.09582257,2440.5,2440.1,1.16007194]
[1642949913378,1.39582257,2440.5,2440.1,1.16007194]
[1642949913578,2.05129,2441.1,2440.1,1.16007194]
[1642949914784,2.0637027,2441.1,2440.1,1.16007194]
[1642949914979,2.6637027,2441.1,2440.1,1.16007194]
[1642949915781,1.51290837,2440.3,2440.1,1.16007194]
[1642949915982,1.81290837,2440.3,2440.1,1.16007194]
[1642949916823,1.02586,2440.6,2440.1,1.16007194]
[1642949917027,1.0256,2441.1,2440.1,1.16007194]
[1642949917227,5.55129,2441.1,2440.1,1.16007194]
[1642949917828,1.08892308,2440.8,2440.1,1.16007194]
[1642949918028,1.58792308,2440.8,2440.1,1.16007194]
[1642949918232,0.499,2440.8,2440.1,1.16007194]
[1642949918426,1.099,2440.8,2440.1,1.16007194]
[1642949918629,0.799,2440.8,2440.1,1.16007194]
[1642949918826,1.099,2440.8,2440.1,1.16007194]
[1642949919228,0.499,2440.8,2440.1,1.16007194]
[1642949919429,1.35126781,2440.5,2440.1,1.16007194]
[1642949919630,0.499,2440.8,2440.1,1.16007194]
[1642949920033,0.03254161,2440.7,2440.1,1.16007194]
[1642949920271,0.499,2440.6,2440.1,1.16007194]
[1642949920465,0.499,2440.5,2440.1,1.16007194]
[1642949920670,0.499,2440.4,2440.1,1.16007194]
[1642949920877,0.7564,2441.4,2440.1,1.16007194]
[1642949920878,1.78191,2441.4,2440.1,1.16007194]
[1642949921066,0.499,2441.3,2440.1,1.16007194]
[1642949921868,1.09896775,2441.2,2440.1,1.16007194]
[1642949922071,1.59796775,2441.2,2440.1,1.16007194]
[1642949922570,2.19796775,2441.2,2440.1,1.16007194]
[1642949923070,2.14796775,2441.2,2440.1,1.16007194]
[1642949924821,0.499,2441.2,2440.2,5.2806552]
[1642949925022,0.499,2441.2,2440.1,1.16007194]
[1642949925223,0.499,2441.2,2440.2,5.26518081]
[1642949925425,0.499,2441.2,2440.1,1.16007194]
[1642949925426,0.495079,2441.2,2440.1,1.16007194]
[1642949925825,0.495079,2441.2,2440.2,5.47641513]
[1642949926027,0.495079,2441.2,2440.3,0.01266834]
[1642949926626,0.795079,2441.2,2440.3,0.01266834]
[1642949928074,0.495079,2441.2,2440.3,0.01266834]
[1642949928674,1.37637038,2441.1,2440.3,0.01266834]
[1642949928874,0.3,2441.2,2440.1,1.16007194]
[1642949929271,0.3,2441.4,2440.1,1.16007194]
[1642949929972,1.20726701,2441.1,2440.1,1.16007194]
[1642949930171,1.50726701,2441.1,2440.1,1.16007194]
[1642949930373,1.80726701,2441.1,2440.1,1.16007194]
[1642949930575,1.29388962,2440.7,2440.1,1.16007194]
[1642949930976,0.6,2441.1,2440.1,1.16007194]
[1642949931179,0.6,2441.1,2440.3,0.01296249]
[1642949931373,0.499,2441.2,2440.3,0.01296249]
[1642949931374,1.099,2441.2,2440.3,0.01296249]
[1642949932028,1.4604433,2440.9,2440.3,0.01296249]
[1642949932224,1.099,2441.2,2440.3,0.01296249]
[1642949932225,0.499,2441.2,2440.3,0.01296249]
[1642949932822,0.799,2441.2,2440.3,0.01296249]
[1642949933228,1.38012578,2440.1,2439.7,0.1638]
[1642949933425,0.01291953,2440.9,2439.7,0.1638]
[1642949933426,0.499,2440.3,2440.1,0.06438122]
[1642949933628,1.3,2441.2,2441.0,0.65079704]
[1642949933827,1.3,2441.2,2440.4,1.6278032]
[1642949934024,1.3,2441.2,2440.5,0.02518732]
[1642949934025,0.499,2441.1,2440.5,0.02518732]
[1642949934224,0.3,2441.2,2440.4,1.6278032]
[1642949934225,0.02404858,2441.2,2440.4,1.6278032]
[1642949934424,1.11484997,2440.9,2440.5,0.03035597]
[1642949934623,1.11484997,2440.9,2440.4,1.6278032]
[1642949934824,0.499,2441.2,2440.5,0.01268078]
[1642949935025,0.499,2441.5,2440.5,2.33811392]
[1642949935268,0.499,2441.5,2440.5,2.32543314]
[1642949935269,1.5244004,2441.5,2440.5,2.32543314]
[1642949935973,1.39625966,2440.6,2440.5,2.32543314]
[1642949936175,1.39625966,2440.6,2440.5,3.314e-05]
[1642949936377,1.39625966,2440.6,2440.3,0.32191635]
[1642949936378,1.89525966,2440.6,2440.3,0.32191635]
[1642949938370,3.31812266,2440.6,2440.1,0.06438122]
[1642949938576,3.31812266,2440.6,2439.6,0.2239]
[1642949938577,1.02585,2440.4,2439.6,0.2239]
[1642949938876,0.499,2440.3,2439.7,3.4874946]
[1642949939122,0.499,2440.3,2439.4,3.4874946]
[1642949939320,1.02609,2440.2,2439.3,1.50394663]
[1642949939517,0.499,2440.1,2439.3,1.50394663]
[1642949939720,0.499,2440.1,2439.3,0.05544663]
[1642949940018,1.026295,2439.3,2438.5,1.54194594]
[1642949940521,0.3,2439.2,2438.6,3.4881048]
[1642949940722,0.799,2439.6,2438.6,3.4881048]
[1642949940922,21.768471,2441.6,2438.8,1.55452442]
[1642949940923,1.0,2440.3,2438.8,1.55452442]
[1642949941123,1.499,2440.3,2439.2,0.00447534]
[1642949941322,1.499,2440.3,2438.9,2.05672915]
[1642949941323,1.0,2440.2,2438.9,1.54194594]
[1642949941732,1.0,2440.2,2438.8,2.06930763]
[1642949941733,1.02593,2440.2,2439.0,3.4881048]
[1642949941930,1.10430574,2440.1,2439.1,3.4881048]
[1642949942131,1.02593,2440.2,2439.0,3.4881048]
[1642949942132,2.02593,2440.2,2439.0,3.4881048]
[1642949942333,2.02593,2440.2,2438.9,1.54194594]
[1642949942334,10.3511353,2440.1,2438.9,1.54194594]
[1642949942530,10.3511353,2440.1,2439.1,2.32619756]
[1642949942531,2.05262,2439.8,2439.1,2.32619756]
[1642949942792,1.8253,2439.7,2439.1,2.32619756]
[1642949942996,1.34716703,2439.5,2439.1,2.32619756]
[1642949943195,0.499,2439.4,2439.1,2.32619756]
[1642949943393,1.40020097,2439.2,2438.6,6.271e-05]
[1642949943601,1.40020097,2439.2,2435.0,20.89887713]
[1642949943602,1.13313296,2438.3,2437.9,2.05672915]
[1642949943797,1.13313296,2438.3,2437.8,3.14392081]
[1642949943798,1.0639,2438.3,2437.8,0.02]
[1642949943995,0.499,2438.2,2437.8,0.02]
[1642949944696,0.499,2438.8,2437.9,0.05658167]
[1642949944897,3.0798,2439.4,2437.8,0.02]
[1642949944898,0.499,2439.4,2438.2,0.01203894]
[1642949945696,0.499,2439.4,2437.8,0.02]
[1642949945697,0.05716368,2439.2,2437.8,0.02]
[1642949945899,1.2614623,2438.3,2437.8,0.02]
[1642949946204,2.0527289,2439.3,2437.8,0.02]
[1642949946205,4.1443,2439.0,2437.8,0.02]
[1642949946398,0.499,2438.5,2437.8,0.02]
[1642949946624,0.799,2438.5,2437.8,0.02]
[1642949946824,1.049,2438.5,2437.8,0.02]
[1642949947227,0.08137909,2438.4,2437.8,0.02]
[1642949947622,1.049,2438.5,2437.8,0.02]
[1642949948427,1.51035225,2438.1,2437.7,7.48]
[1642949948625,3.03614415,2438.1,2437.7,7.48]
[1642949948827,0.04053856,2438.0,2437.7,2.79304607]
[1642949949026,0.499,2437.9,2437.7,2.79304607]
[1642949949427,10.3783,2439.0,2437.7,2.8057673]
[1642949949428,0.499,2438.7,2437.7,2.8057673]
[1642949949631,0.499,2438.7,2437.9,1.49699999]
[1642949949833,1.0262811,2439.2,2437.9,1.49699999]
[1642949950275,1.0262811,2439.2,2438.0,2.32685195]
[1642949950476,0.499,2439.3,2438.0,2.32685195]
[1642949950674,1.0261183,2439.5,2438.3,0.01216241]
[1642949951275,1.0261183,2439.5,2438.4,0.05050698]
[1642949951475,1.0261183,2439.5,2438.4,2.32685195]
[1642949951476,2.47021942,2439.5,2438.4,2.32685195]
[1642949951680,1.0261183,2439.5,2438.4,2.32685195]
[1642949952386,0.3019,2439.6,2438.5,5.39151291]
[1642949952582,0.3019,2439.6,2438.9,0.01207231]
[1642949953580,0.3019,2439.6,2438.8,0.2409]
[1642949954035,0.3019,2439.6,2438.9,2.32685195]
[1642949954824,2.50770472,2440.1,2438.9,2.32685195]
[1642949955223,2.50770472,2440.1,2438.8,7.7209]
[1642949955224,2.43540472,2440.1,2438.8,7.7209]
[1642949955424,1.499,2440.0,2438.9,4.47977182]
[1642949955627,0.3,2439.7,2438.8,7.7209]
[1642949956126,0.29913727,2439.7,2438.8,7.7209]
[1642949956427,0.29913727,2439.7,2438.9,2.32611372]
[1642949956832,1.12378416,2439.9,2438.9,2.32611372]
[1642949957033,1.12378416,2439.9,2439.0,0.01577031]
[1642949957034,1.0259948,2439.8,2439.0,0.01577031]
[1642949957233,1.0259948,2439.8,2438.9,2.32611372]
[1642949957867,0.09153448,2439.7,2438.8,7.7209]
[1642949958073,0.3,2439.7,2438.8,7.7209]
[1642949958271,0.6,2439.7,2438.8,7.7209]
[1642949958671,0.6,2439.7,2438.9,0.00651375]
[1642949958873,0.6,2439.7,2438.8,7.7209]
[1642949959072,1.0259948,2439.8,2439.1,0.03800948]
[1642949959473,1.0259948,2439.8,2439.0,2.32609706]
[1642949959874,0.08229488,2439.6,2439.0,2.32609706]
[1642949960076,2.08376068,2439.7,2439.1,0.01134732]
[1642949960077,1.0261356,2439.3,2439.1,0.01134732]
[1642949960280,8.74987172,2440.0,2438.9,7.35875307]
[1642949960477,6.25224,2440.4,2439.0,0.02817515]
[1642949960478,0.499,2440.3,2439.0,0.02817515]
[1642949960673,0.499,2440.3,2439.0,0.04078581]
[1642949960875,0.499,2440.3,2439.0,0.01261066]
[1642949961532,1.53874839,2439.7,2439.0,0.01261066]
[1642949961721,2.03774839,2439.7,2438.8,7.7209]
[1642949962320,2.63774839,2439.7,2438.8,7.48]
[1642949962521,2.44305281,2439.3,2438.8,7.48]
[1642949962826,2.44305281,2439.3,2438.4,3.09331645]
[1642949962827,1.0262175,2439.2,2438.4,3.09331645]
[1642949963022,0.03286813,2439.1,2438.4,3.09331645]
[1642949963221,1.0262175,2439.2,2438.4,3.09331645]
[1642949963622,1.0262175,2439.2,2438.5,0.05658167]
[1642949963623,3.078789,2439.2,2438.5,0.05658167]
[1642949963823,1.28655828,2438.8,2438.4,2.95511648]
[1642949964023,0.499,2439.1,2438.4,0.1638]
[1642949964024,0.03683969,2438.7,2438.4,0.1638]
[1642949964222,0.499,2439.1,2438.3,7.8811]
[1642949964624,0.499,2439.1,2438.4,0.02419956]
[1642949964823,0.499,2439.1,2438.3,7.8811]
[1642949965023,0.06516359,2438.8,2438.3,7.8811]
[1642949965271,1.026365,2438.7,2438.3,7.8811]
[1642949965770,1.026365,2438.7,2438.0,7.48]
[1642949965771,0.499,2438.6,2438.0,7.48]
[1642949966578,0.2295,2439.4,2438.3,0.01299395]
[1642949966579,1.0262206,2439.1,2438.3,0.01299395]
[1642949966976,0.499,2439.0,2438.1,2.32670794]
[1642949967176,1.3297,2439.0,2438.1,2.32670794]
[1642949967377,0.06539651,2438.9,2438.1,2.32670794]
[1642949967574,1.0265898,2438.6,2438.0,7.48]
[1642949967775,0.08666821,2438.5,2438.0,7.48]
[1642949967975,1.1715067,2438.1,2438.0,7.48]
[1642949968575,1.1715067,2438.1,2437.9,0.76350859]
[1642949969117,1.1715067,2438.1,2437.6,8.41819997]
[1642949969919,0.3,2438.0,2437.0,0.01220999]
[1642949970127,0.3,2438.0,2436.3,0.02]
[1642949970128,0.0129672,2437.1,2436.3,0.02]
[1642949970323,0.70408,2437.0,2436.3,0.02]
[1642949970520,0.70408,2437.0,2435.5,7.5]
[1642949970521,7.8,2436.9,2435.9,2.79401958]
[1642949970726,0.70408,2436.8,2435.9,2.79401958]
[1642949970922,1.0275232,2436.3,2435.9,2.01466205]
[1642949971126,1.0275232,2436.3,2435.5,10.29401958]
[1642949971127,0.20508,2436.2,2435.5,10.29401958]
[1642949971324,1.02749,2436.6,2436.3,0.4054664]
[1642949971522,1.02749,2436.6,2435.5,10.29401958]
[1642949971523,7.8,2436.5,2435.5,10.30603215]
[1642949971729,7.8,2436.5,2435.5,0.03201257]
[1642949971730,0.04178437,2436.3,2435.5,0.03201257]
[1642949971922,0.499,2436.3,2435.5,0.03201257]
[1642949972523,4.55,2436.2,2434.9,6.55731257]
[1642949972768,0.08274694,2436.1,2435.0,3.48963415]
[1642949972967,0.499,2436.3,2435.0,3.48963415]
[1642949973172,7.6922816,2437.7,2435.3,0.01236498]
[1642949973173,4.112,2437.0,2435.3,0.01236498]
[1642949973371,4.112,2437.0,2435.8,0.0120217]
[1642949973567,0.499,2436.9,2435.9,3.51721676]
[1642949973767,0.499,2436.9,2435.4,0.01266451]
[1642949974070,4.112,2437.0,2435.5,3.48897727]
[1642949974272,1.35514536,2436.7,2435.5,5.81478167]
[1642949974468,1.35514536,2436.7,2435.6,3.48897727]
[1642949975269,0.499,2436.6,2435.6,3.48897727]
[1642949975569,0.499,2436.6,2435.7,2.3258044]
[1642949975874,0.6027,2436.3,2435.7,2.3258044]
[1642949976070,0.499,2436.2,2435.7,2.3258044]
[1642949976529,0.499,2436.2,2435.8,1.09155024]
[1642949977924,0.499,2436.2,2435.9,2.3258044]
[1642949978529,0.499,2436.2,2436.0,0.01083514]
[1642949978728,0.2549,2436.3,2436.0,0.01083514]
[1642949978926,0.2549,2436.3,2435.9,2.3258044]
[1642949984736,0.2549,2436.3,2436.1,0.02835955]
[1642949984936,4.112,2437.0,2436.4,0.5098]
[1642949985137,0.499,2437.1,2436.4,0.5098]
[1642949985535,0.499,2437.1,2436.5,2.3258044]
[1642949985739,0.499,2437.1,2436.5,2.2758044]
[1642949986438,0.499,2437.1,2436.6,3.48863211]
[1642949986638,0.499,2437.1,2436.5,2.2758044]
[1642949986838,0.03431045,2437.0,2436.4,0.5098]
[1642949987036,1.02713,2437.2,2436.4,0.5098]
[1642949987872,1.02713,2437.2,2436.5,3.48858914]
[1642949988075,0.07454974,2437.1,2436.4,0.5098]
[1642949988272,1.02713,2437.2,2436.4,0.5098]
[1642949988878,2.55325,2437.4,2436.5,5.11107454]
[1642949989073,1.02695,2437.5,2436.6,1.0]
[1642949989273,1.02695,2437.5,2436.7,3.48831184]
[1642949989472,1.02695,2437.5,2436.4,0.5098]
[1642949989774,0.499,2437.4,2436.4,0.5098]
[1642949989974,1.33403698,2437.3,2436.4,0.5098]
[1642949990273,2.55319,2437.4,2436.4,0.5098]
[1642949990471,0.04888232,2437.3,2436.4,0.5098]
[1642949991076,2.55319,2437.4,2436.4,0.5098]
[1642949991531,1.29178447,2437.3,2436.4,0.5098]
[1642949991723,0.499,2437.2,2436.4,0.5098]
[1642949991923,0.59896447,2437.7,2436.5,2.9]
[1642949992122,1.21768027,2437.2,2436.6,0.04118577]
[1642949992323,0.499,2437.1,2436.5,2.9]
[1642949992522,0.59896447,2437.7,2437.1,1.49699999]
[1642949992723,2.05419,2437.4,2436.5,2.9]
[1642949992925,1.02709,2437.5,2436.5,2.9]
[1642949992926,0.499,2437.3,2436.5,7.31453886]
[1642949993126,1.16523107,2437.8,2436.7,0.01266825]
[1642949993127,0.13819997,2437.8,2436.7,0.01266825]
[1642949993322,1.66352376,2437.7,2436.7,0.01266825]
[1642949993524,1.20567846,2437.3,2436.7,0.01266825]
[1642949993723,0.499,2437.7,2436.4,0.5098]
[1642949993724,0.499,2437.2,2436.4,0.5098]
[1642949993924,0.499,2437.1,2436.4,0.5098]
[1642949994323,2.35405,2437.6,2436.4,0.5098]
[1642949994525,0.799,2437.5,2436.4,0.5098]
[1642949994724,1.82615,2437.5,2436.4,0.5098]
[1642949994924,1.52615,2437.5,2436.4,0.5098]
[1642949995125,1.02702,2437.4,2436.4,0.5098]
[1642949995578,1.02702,2437.4,2436.5,2.32539739]
[1642949995979,0.97702,2437.4,2436.5,2.32539739]
[1642949996788,0.06908912,2437.3,2436.5,2.32539739]
[1642949996985,0.06908912,2437.3,2436.4,0.5098]
[1642949997185,0.97702,2437.4,2436.4,0.5098]
[1642949997986,1.47602,2437.4,2436.4,0.5098]
[1642949998186,1.47602,2437.4,2436.5,2.32533528]
[1642949998788,0.0438552,2437.3,2436.5,2.32533528]
[1642949999218,1.25471815,2437.2,2436.5,2.32533528]
[1642949999421,2.55339,2437.1,2436.4,0.5098]
[1642950001519,0.0747029,2437.0,2436.4,0.5098]
[1642950001927,2.55339,2437.1,2436.4,0.5098]
[1642950002323,2.00419,2437.4,2436.4,0.5098]
[1642950002324,0.02167486,2436.8,2436.4,0.5098]
[1642950002525,0.97702,2437.4,2436.5,0.05658167]
[1642950002769,0.97702,2437.4,2436.4,0.5098]
[1642950002968,0.05055166,2437.3,2436.4,0.5098]
[1642950003170,1.52521186,2436.8,2436.4,0.5098]
[1642950003573,2.02421186,2436.8,2436.4,0.5098]
[1642950003769,2.02421186,2436.8,2435.8,1.09155024]
[1642950003770,0.02167486,2436.6,2435.8,1.09155024]
[1642950003970,0.02167486,2436.6,2435.5,0.01201072]
[1642950003971,1.25589163,2436.0,2435.5,0.01201072]
[1642950004168,1.25589163,2436.0,2435.2,7.48]
[1642950004169,2.07059163,2436.0,2435.2,7.48]
[1642950004367,0.8147,2436.0,2435.2,7.48]
[1642950004575,0.8147,2436.0,2435.3,5.82167748]
[1642950004772,0.8147,2436.0,2435.3,2.32924839]
[1642950005174,0.8147,2436.0,2435.4,1.09155024]
[1642950005375,1.1639275,2435.6,2435.4,1.09155024]
[1642950005776,1.02768,2435.8,2435.4,1.09155024]
[1642950006836,0.02167486,2435.6,2435.4,1.09155024]
[1642950007033,0.02167486,2435.6,2435.5,2.32935885]
[1642950007431,0.02167486,2435.6,2435.5,5.82221053]
[1642950007635,0.02167486,2435.6,2435.5,5.82218745]
[1642950007835,0.02167486,2435.6,2435.5,2.32935885]
[1642950008137,1.21590613,2435.6,2435.5,2.32935885]
[1642950008336,1.21590613,2435.6,2435.4,1.09155024]
[1642950008337,1.71490613,2435.6,2435.4,1.09155024]
[1642950008536,1.71490613,2435.6,2435.2,7.48]
[1642950008537,1.99323127,2435.6,2435.2,7.48]
[1642950008736,0.02167486,2435.5,2434.7,5.9181]
[1642950008935,1.69323127,2435.6,2434.8,3.49311797]
[1642950009335,1.69323127,2435.6,2435.2,0.39309902]
[1642950009336,0.499,2435.6,2435.2,0.39309902]
[1642950009539,0.499,2435.6,2434.6,5.03882633]
[1642950009540,7.0,2435.4,2435.1,1.09155024]
[1642950009740,1.57494864,2435.3,2435.2,2.40161797]
[1642950009935,1.57494864,2435.3,2434.5,14.29335054]
[1642950009936,1.52711,2435.3,2434.5,13.78232975]
[1642950010136,1.52711,2435.3,2434.5,6.9967]
[1642950010376,0.02167486,2435.2,2434.5,6.9967]
[1642950010577,1.02811,2435.3,2434.5,6.9967]
[1642950010878,1.17306119,2435.6,2434.5,6.9967]
[1642950011076,0.4036,2435.7,2434.6,1.57673163]
[1642950011277,0.4036,2435.7,2434.8,1.54570836]
[1642950011877,0.02167486,2435.2,2434.8,1.54570836]
[1642950012077,0.4036,2435.7,2434.8,1.84570836]
[1642950012291,4.0384,2436.5,2435.1,0.01219274]
[1642950012478,4.0384,2436.5,2435.3,1.54570836]
[1642950012677,4.0384,2436.5,2435.5,0.04983836]
[1642950012879,4.0384,2436.5,2435.3,1.54570836]
[1642950013077,4.0384,2436.5,2435.1,9.54892189]
[1642950013078,4.0384,2436.5,2435.2,2.54570836]
[1642950013279,0.02167486,2435.8,2435.2,4.34064527]
[1642950013480,4.0384,2436.5,2435.9,0.04334971]
[1642950013881,2.05485,2436.7,2435.9,0.04334971]
[1642950014130,2.0548444,2437.2,2436.0,0.01332534]
[1642950014131,1.0479,2436.9,2436.0,0.01332534]
[1642950014529,1.0479,2436.9,2435.9,0.04334971]
[1642950016430,1.0409072,2437.0,2435.9,0.04334971]
[1642950017032,1.0409072,2437.0,2435.9,5.21345179]
[1642950017231,1.0409072,2437.0,2435.9,0.04334971]
[1642950018475,1.0409072,2437.0,2435.8,0.94334971]
[1642950018676,1.0409072,2437.0,2435.9,0.04801633]
[1642950018979,1.0409072,2437.0,2435.8,0.94334971]
[1642950019576,1.0409072,2437.0,2435.7,7.69789083]
[1642950019980,0.04098393,2436.9,2435.7,7.69789083]
[1642950020180,1.0409072,2437.0,2435.7,7.69789083]
[1642950020480,1.0409072,2437.0,2435.8,1.0]
[1642950020679,0.0137072,2437.0,2435.8,6.46227806]
[1642950020877,0.0137072,2437.0,2435.9,2.32857654]
[1642950021536,0.0137072,2437.0,2436.0,0.01212727]
[1642950021738,0.0137072,2437.0,2435.9,2.32857654]
[1642950021945,0.05596507,2436.9,2435.9,2.32857654]
[1642950022143,0.0137072,2437.0,2435.9,2.32857654]
[1642950022740,0.0137072,2437.0,2436.0,5.02974785]
[1642950022941,0.0137072,2437.0,2435.9,2.32857654]
[1642950023543,1.51860829,2436.8,2435.9,2.32857654]
[1642950024043,1.51860829,2436.8,2436.0,0.05658167]
[1642950024442,1.51860829,2436.8,2435.9,2.32857654]
[1642950024642,0.04609249,2436.7,2435.9,2.32857654]
[1642950024845,1.4636937,2436.4,2435.9,2.32857654]
[1642950025056,0.03364173,2436.3,2435.9,2.32857654]
[1642950025291,0.499,2436.5,2435.9,2.32857654]
[1642950026091,0.499,2436.5,2435.8,2.32857654]
[1642950026697,1.08586599,2436.2,2435.8,2.32857654]
[1642950026894,1.02734,2436.6,2435.8,2.32857654]
[1642950027096,1.02734,2436.6,2435.9,0.04372666]
[1642950027296,1.02734,2436.6,2435.8,2.32857654]
[1642950027496,1.02734,2436.6,2435.8,2.27857654]
[1642950027997,2.31003473,2436.6,2435.8,2.27857654]
[1642950028399,1.02734,2436.6,2435.8,2.27857654]
[1642950030731,1.51067625,2436.5,2435.8,2.27857654]
[1642950033079,1.02734,2436.6,2435.8,2.27857654]
[1642950033479,1.02734,2436.6,2435.9,0.01109394]
[1642950033679,1.02734,2436.6,2435.8,2.27857654]
[1642950034481,0.04200112,2436.5,2435.8,2.27857654]
[1642950034681,1.02734,2436.6,2435.8,2.27857654]
[1642950035486,1.02734,2436.6,2435.9,0.05658167]
[1642950035688,1.18217831,2435.9,2435.8,2.27857654]
[1642950035886,0.4709,2436.0,2435.8,2.27857654]
[1642950036285,0.04423264,2435.9,2435.7,1.53684654]
[1642950036528,0.04423264,2435.9,2435.3,7.48]
[1642950036529,1.02776,2435.7,2435.3,7.48]
[1642950036729,1.11666327,2435.9,2435.3,7.48]
[1642950037529,1.11666327,2435.9,2435.4,0.00898725]
[1642950037827,1.11666327,2435.9,2435.3,7.48]
[1642950038031,1.02776,2435.7,2435.3,7.48]
[1642950038729,4.6,2435.4,2434.8,2.79479975]
[1642950038931,5.48980287,2435.4,2434.8,2.79479975]
[1642950039133,0.834,2435.4,2434.8,2.79479975]
[1642950039532,0.0386814,2435.2,2434.8,2.79479975]
[1642950039930,1.02793,2435.3,2434.6,2.79479975]
[1642950040275,1.02793,2435.3,2434.7,3.49282456]
[1642950041077,1.02793,2435.3,2434.8,0.00726929]
[1642950041483,0.08280856,2435.2,2434.5,14.4767]
[1642950041680,1.02793,2435.3,2434.6,3.49284364]
[1642950042482,1.02793,2435.3,2434.7,2.32960956]
[1642950042681,1.50952974,2435.5,2434.8,3.52633245]
[1642950042880,1.50952974,2435.5,2434.8,3.49284364]
[1642950043286,5.20528,2435.7,2434.8,3.49284364]
[1642950043583,0.0274144,2435.8,2434.9,6.07915337]
[1642950043783,0.0274144,2435.8,2435.0,3.50530029]
[1642950044041,0.0274144,2435.8,2435.1,1.0]
[1642950044236,0.0274144,2435.8,2435.2,3.49284364]
[1642950044434,0.0205608,2435.8,2435.2,3.49284364]
[1642950044635,0.0205608,2435.8,2435.3,1.0]
[1642950044836,0.0205608,2435.8,2435.4,3.49284364]
[1642950045036,0.0205608,2435.8,2435.4,5.8224532]
[1642950045240,0.0205608,2435.8,2435.4,2.32960956]
[1642950046043,0.0205608,2435.8,2435.5,3.49200794]
[1642950046443,0.0068536,2436.3,2435.5,10.67050256]
[1642950046649,0.0068536,2436.3,2435.7,0.0128954]
[1642950046846,0.0068536,2436.3,2435.8,3.49200794]
[1642950047045,0.0068536,2436.3,2435.9,1.0]
[1642950047248,0.0068536,2436.5,2436.3,0.01370719]
[1642950047447,0.0068536,2436.4,2436.3,0.01370719]
[1642950048180,0.0068536,2436.4,2436.3,6.41370719]
[1642950048979,0.0068536,2436.4,2436.3,8.7420778]
[1642950050181,0.0137072,2436.5,2436.4,4.01081864]
[1642950050583,0.0205608,2436.5,2436.4,4.01081864]
[1642950051629,0.0274144,2436.5,2436.4,4.01081864]
[1642950052636,0.034268,2436.5,2436.4,6.33917577]
[1642950053830,4.90775,2437.2,2436.4,9.73917577]
[1642950054034,1.02696,2437.7,2436.5,1.01503059]
[1642950054231,1.16292631,2437.6,2436.4,6.33917577]
[1642950054631,1.16292631,2437.6,2436.5,1.0]
[1642950054832,1.16977991,2437.6,2436.5,1.0]
[1642950055133,1.19287032,2437.2,2436.6,2.32835713]
[1642950055776,1.02696,2437.7,2436.7,0.02297365]
[1642950056186,1.02696,2437.7,2436.6,2.32835713]
[1642950056584,1.02696,2437.7,2436.5,2.32835713]
[1642950056884,1.09364223,2437.3,2436.5,2.32835713]
[1642950057085,1.09364223,2437.3,2436.5,2.32150353]
[1642950057484,0.05890003,2437.2,2436.5,2.32150353]
[1642950057684,1.09364223,2437.3,2436.5,2.32150353]
[1642950058087,1.39363951,2436.9,2436.5,2.32150353]
[1642950058691,1.02705,2437.4,2436.5,2.32150353]
[1642950059326,1.02705,2437.4,2436.6,0.05658167]
[1642950059726,1.47483969,2437.3,2436.6,0.05658167]
[1642950059929,0.03555039,2437.2,2436.5,2.32150353]
[1642950060331,0.03555039,2437.2,2436.4,0.01081864]
[1642950060530,0.03445662,2436.8,2436.4,0.01081864]
[1642950060730,1.02705,2437.4,2436.4,0.01081864]
[1642950060929,1.02705,2437.4,2436.5,0.0114289]
[1642950061133,1.02705,2437.4,2436.4,0.01081864]
[1642950061733,5.59758433,2437.3,2436.4,0.01081864]
[1642950061931,2.05459,2437.1,2436.4,0.01081864]
[1642950062974,0.0462912,2437.0,2436.4,0.01081864]
[1642950063173,2.05459,2437.1,2436.4,0.01081864]
[1642950063377,1.02726,2436.9,2436.4,0.01081864]
[1642950064178,2.41754507,2436.9,2436.4,0.01081864]